{"text_format":"1","workbook":"xlsx","n_sheets":9,"sheets":["Instructivo","DEMANDA ANUAL","VOLUMEN DE QUEJAS","COSTO ADMINISTRACIÓN PÚBLICA","RESUMEN DE COSTOS AP","AUXILIAR COSTO ADMINISTRACIÓN","TIEMPO DE RESPUESTA","CANAL ATENCIÓN","RESUMEN"],"not_rendered":{"charts":0,"images":7,"macros":1,"external_links":0,"defined_names":1,"comments":5,"pivot_tables":0},"unopened":[],"bounds":{"document_bytes":16777216,"sheet_cells":100000,"rows_first":2000,"rows_last":500,"rows_between":2000,"halvings":0,"cell_chars":16384,"cell_head_chars":4096},"cells_cut":0,"cells_raw":0,"read":"whole","date_system":"1900"}

{"sheet":"Instructivo","index":0,"n_rows":70,"n_cols":1,"rows_kept":70,"cut":false,"hidden":false,"merged":[]}
["CRITERIO DE PRIORIZACIÓN DE TRÁMITES ADMINISTRATIVOS"]
["Instructivo"]
["Consideraciones generales"]
[]
["En las hojas “COSTO DE ADMINISTRACIÓN PÚBLICA”y “RESUMEN”  para añadir más trámites y que apliquen las fórmulas, se deberá seleccionar la primera fila y copiarla una por cada trámite de la entidad"]
[]
["Todas las hojas tienen columnas de color celeste, en las cuales NO deben ingresar valores ya que contienen fórmulas."]
["Para la carga en GOB.EC. La institución debe recordar que el peso máximo del archivo es de 2 MB."]
["Esquema de puntuación"]
["Para priorizar un trámite, se realizará un análisis de criterios básicos y adicionales basado en información que disponen las instituciones sujetas a esta norma técnica. Cada criterio será puntuado según los lineamientos presentes en esta norma."]
["a) Demanda Anual"]
["Considerará el volumen o frecuencia de las solicitudes que ingresan al año a cada institución para la gestión de un trámite en particular."]
["La identificación del volumen anual de los trámites se realizará a través de sus registros de transacciones y/o el número de visitas de consulta de información realizadas a través de páginas web institucionales."]
["Para realizar el registro realice lo siguiente:"]
["1.- Seleccione la hoja DEMANDA ANUAL"]
["2.- Ingrese los trámites de la institución registrando el identificador y nombre en las columnas respectivas.  "]
["3.- Para cada trámite debe especificar en la columna DEMANDA ANUAL el volumen o frecuencia anual, de acuerdo a lo mencionado anteriormente."]
["4.- Una vez terminado el llenado solicitado presione el botón PUNTUACIÓN, se ordenara de menor a mayor. "]
["5.- Usted visualizará el ordenamiento de los trámites ingresados de acuerdo al número de  volumen o frecuencia anual."]
["6.- Así mismo, usted visualizará el puntaje obtenido en la columna PUNTUACIÓN de acuerdo al grupo obtenido por cada trámite de acuerdo al número de volumen o frecuencia anual cosiderando lo siguiente: ** Primer grupo (trámites con menor demanda no incluye los trámites con demanda 0 ) = 3\n** Segundo grupo (trámites con demanda intermedia) = 6\n** Tercer grupo (trámites con mayor demanda) = 10"]
["Cada vez que requiera actualizar el puntaje presionando el botón puntuación, debe verificar que la celda de la columna puntaje se encuentren vacías, es decir, se debe borrar cualquier valor de puntaje obtenido previamente."]
["b) Volumen de quejas asociadas a un trámite: "]
["Considerará la cantidad de quejas recibidas en relación a un trámite durante un año. Estas quejas deberán estar documentadas en medios físicos y/o digitales."]
["Para determinar la puntuación, se colocará en una tabla todos los trámites con sus correspondientes quejas ordenándose de menor a mayor. Se dividirá en 2 partes en los que cada grupo contenga la misma cantidad de trámites."]
["Para realizar el registro realice lo siguiente:"]
["1.- Seleccione la hoja VOLUMEN DE QUEJAS"]
["2.- Ingrese los trámites de la institución registrando el identificador y nombre en las columnas respectivas.  Si usted requiere de acuerdo al número de trámites copie filas adicionales que estén dentro del cuadro"]
["3.- Para cada trámite debe especificar en la columna VOLUMEN QUEJAS el número de quejas anual, de acuerdo a lo mencionado anteriormente."]
["4.- Una vez terminado el llenado solicitado presione el botón PUNTUACIÓN."]
["5.- Usted visualizará el ordenamiento de los trámites ingresados de acuerdo al número de  volumen o frecuencia anual."]
["6.- Así mismo, usted visualizará el puntaje obtenido en la columna PUNTUACIÓN de acuerdo al grupo obtenido por cada trámite de acuerdo al número de volumen o frecuencia anual cosiderando lo siguiente: La puntuación se basará en los siguientes grupos:\n** Primer grupo (trámites con menor cantidad de quejas, no incluye los trámites con queja 0 ) = 4\n** Segundo grupo (trámites con mayor porcentaje de quejas) = 10"]
["El valor del volumen de quejas no debe ser superior al valor del volumen de la demana, no le permitirá registrar un valor."]
["c) Costo para la administración pública: "]
["En cada trámite, basado en un caso estándar, se deberá estimar el costo incurrido en el costo de personal y recursos necesarios para su atención desde que el administrado entregó todos los requisitos hasta que la institución entregue el producto, respuesta o servicio requerido en el trámite. Se considerará:"]
["• Costo de personal:"]
["Costo del personal para atender el trámite, se excluyen actividades realizadas automáticamente o que dependen del administrado. El tiempo deberá considerar únicamente el tiempo efectivo de trabajo del personal, no debe considerar el tiempo de espera o de movimiento."]
["• Costo de recursos:"]
["Se deberá considerar el costo directo en el que la institución debe incurrir para atender un trámite. Se debe considerar los insumos o materia prima necesaria u cualquier otro que la institución considere pertinente."]
["Para realizar el registro realice lo siguiente:"]
["1.- Seleccione la hoja COSTO ADMINISTRACIÓN PÚBLICA"]
["2.- Ingrese los trámites de la institución registrando el identificador y nombre en las columnas respectivas.  Si usted requiere de acuerdo al número de trámites copie filas adicionales que estén dentro del cuadro"]
["3.- Para calcular el tiempo de las actividades, utilizar la hoja AUXILIAR COSTO ADMINISTRACIÓN donde deberá listar todas las actividades que realiza la institución en un caso estándar y asignar el tiempo mínimo que toma cada actvidad (en horas). El tiempo total de las actividades, deberá ingresar en la correspondiente celda de la hoja COSTO ADMINISTRACIÓN PÚBLICA"]
["4.- En función de la información registrada en el paso 3, la matriz entregará el costo del personal"]
["5.- Completar la columna \"Costo recursos\", en la cual ingresará el costo directo en el que incurre la institución para entregar el trámite. En este valor se considerarán los valores correspondientes a insumos y/o materia prima mínimos que se invierten por cada trámite (no se considera mano de obra)"]
["6.- La columna \"Costo para la adm. pública\" mostrará el costto de este criterio para cada trámite"]
["7,- Para que la fórmula funcione debe arrastrar hacia abajo al último de los támites ingresados, no copiar"]
["7.- Una vez que disponga del Costo para la administración pública, presionar el botón \"GENERAR\"."]
["8. Visualizar la hoja “RESUMEN DE COSTO AP” en la que va a encontrar copiada las celdas necesarias para el ordenamiento y puntuación de las mismas al presionar el botón “PUNTUACIÓN”"]
[]
["d) Tiempo de respuesta: "]
["Considerará los tiempos que a las instituciones les toma dar respuesta a un trámite desde que reciben la solicitud del administrado hasta la finalización del mismo. Para la definición del tiempo se considerará un caso estándar."]
["Para determinar la puntuación, se colocará en una tabla todos los trámites con el tiempo de respuesta, ordenándose de menor a mayor. Se dividirá en 4 grupos, en los que cada uno contenga la misma cantidad de trámites."]
["Para realizar el registro realice lo siguiente:"]
["1.- Seleccione la hoja TIEMPO DE RESPUESTA"]
["2.- Ingrese los trámites de la institución registrando el identificador y nombre en las columnas respectivas.  Si usted requiere de acuerdo al número de trámites copie filas adicionales que estén dentro del cuadro"]
["3.- Para cada trámite debe especificar en la columna TIEMPO RESPUESTA el tiempo, de acuerdo a lo mencionado anteriormente."]
["4.- Una vez terminado el llenado solicitado presione el botón PUNTUACIÓN."]
["5.- Usted visualizará el ordenamiento de los trámites ingresados de acuerdo al número de  volumen o frecuencia anual."]
["6.- Así mismo, usted visualizará el puntaje obtenido en la columna PUNTUACIÓN de acuerdo al grupo obtenido por cada trámite de acuerdo al número de volumen o frecuencia anual cosiderando lo siguiente:  La puntuación considera lo siguiente:\n** Primer grupo (menor o igual a 40 horas laboralres) = 0\n** Segundo grupo mayor  40 horas laboralres) = 30"]
["e) Canal de atención: "]
["Considerará los canales de atención a través de los cuales el administrado puede iniciar el trámite."]
["Para realizar el registro realice lo siguiente:"]
["1.- Seleccione la hoja CANAL ATENCIÓN"]
["2.- Ingrese los trámites de la institución registrando el identificador y nombre en las columnas respectivas.  Si usted requiere de acuerdo al número de trámites copie filas adicionales que estén dentro del cuadro"]
["3.- Para cada trámite debe seleccionar el canal de atención del trámite en la columna CANAL ATENCIÓN, que pueden ser: \nEl trámite se puede completar totalmente en línea: Se considera trámite totalmente en línea cuando el administrado no requiere realizar ninguna interacción presencial con la institución = 0\nEl trámite no se puede completar totalmente en línea: Se considera este caso, cuando el trámite incluye al menos una actividad, incluido mecanismos de pago, en la que el administrado deba acudir presencialmente a la institución, para la realización de dicho trámite. Los trámites presenciales se consideran dentro de esta categoría = 10"]
["4.- De acuerdo a la selección usted obtendrá la puntuación del trámite que se visualizará en la columna PUNTUACIÓN."]
[]
["f) Resumen"]
["En esta hoja deberá consolidar todas las puntuaciones obtenidas para cada trámite en los criterios a) hasta e). Adicionalmente deberá analizar los criterios adicionales que dispone la norma técnica, para estos últimos solamente deberá seleccionar en la celda correspondiente y la matriz asignará la puntuación adicional. Los criterios que deberá considerar son:\n- NECESIDADES CIUDADANAS: Si la institución ha implementado mecanismos para identificar necesidades ciudadanas respecto al trámite, seleccionar \"SI\", caso contrario, seleccionar \"NO\"\n- SUSCEPTIBILIDAD A CORRUPCIÓN: Si la institución dispone de información documentada sobre presuntos actos de corrupción, seleccionar \"SI\", caso contrario, seleccionar \"NO\"\n- VOLUMEN DE DEVOLUCIONES: Si la institución posee documentación sobre devoluciones del trámite en una cantidad significativa, seleccionar \"SI\", caso contrario, seleccionar \"NO\"\nPara que funcione la lista depelgable debe arrastrar la lista y la puntuación hacia abajo al último de los támites ingresados, no copiar"]
["En la columna puntaje total se realizará la sumatoria de los valores de los criterios básicos y adicionales. Este valor deberá registrarse en la plataforma GOB.EC"]

{"sheet":"DEMANDA ANUAL","index":1,"n_rows":47,"n_cols":4,"rows_kept":47,"cut":false,"hidden":false,"merged":[[0,0,0,3],[1,0,1,3]]}
["PRIORIZACIÓN DE TRÁMITES ADMINISTRATIVOS"]
["DEMANDA ANUAL"]
[]
["IDENTIFICADOR","TRÁMITE","DEMANDA ANUAL","PUNTAJE"]
["MD-006-01-01 ","Asesoramiento Técnico Especializado en Cultura Física.",0,0]
["MD-035-01-01 ","Autorización de Registro de Domicilio (Libre Tránsito) a Deportistas Menores de Edad",0,0]
["MD-035-01-02 ","Autorización de Registro de Domicilio (Libre Tránsito) para Deportistas Mayores de Edad",0,0]
["SD-038-01-01 ","Declaración de Inactividad de Organizaciones Deportivas",0,0]
["MD-003-02-04 ","Incremento a la Planificación Operativa Anual de Organizaciones Deportivas",0,0]
["MD-023-01-01","Inscripción a Actividades Deportivas de Natación Ejecutadas en los Centros Activos",0,0]
[" MD-023-02-01 ","Inscripción a Colonias Vacacionales Ejecutadas en los Centros Activos",0,0]
["MD-036-01-01 ","Inscripción de deportistas a Juegos Deportivos Nacionales o de Deporte Adaptado",0,0]
["MD-022-07-05","Otorgamiento de personería jurídica para Clubes Deportivos de Deporte Adaptado y/o Paralímpico",0,0]
["MD-034-02-01 ","Inscripción a Actividades Deportivas Extra-Escolares",3,3]
["MD-034-01-01","Inscripción en Escuelas de Iniciación Deportiva",3,3]
["MD-022-07-08","Otorgamiento de personería jurídica para Federaciones Deportivas",4,3]
["SD-038-01-02 "," Reactivación del funcionamiento de una Organización Deportivas",5,3]
["MD-032-01-01","Registro de Administrador de una Federación Deportiva Provincial",5,3]
["SD-039-01-04 ","Registro de Inclusión y/o Exclusión de Miembros de Organizaciones Sociales",8,3]
["SD-039-01-02 ","Aprobación de Reformas al Estatuto de Organizaciones Sociales",9,3]
["SD-039-01-05 ","Disolución de Organizaciones Sociales",10,3]
[" SD-038-02-01","Disolución y Liquidación Voluntaria de Organizaciones Deportivas",12,3]
["MD-003-01-03 ","Asignación de Recursos Públicos para Ejecución de Actividades Referentes a la Cultura Física a Entidades Privadas no Deportivas a través de Convenios",14,3]
["MD-011-01-01 ","Reserva de Instalaciones Deportivas y Recreativas Para Eventos",14,3]
["MD-022-07-07","Otorgamiento de personería jurídica para Ligas, Asociaciones Deportivas o Federaciones Cantonales",28,6]
["MD-034-03-01","Apertura de Puntos para Desarrollo de Actividades Deportivas Recreativas",30,6]
["MD-032-01-02 ","Registro de Administrador Financiero",31,6]
["MD-022-07-06 ","Otorgamiento de personería jurídica para Clubes Profesionales",37,6]
["SD-039-01-03 ","Registro de Directiva para Organizaciones Sociales",50,6]
["MD-022-07-04","Otorgamiento de personería jurídica para Clubes Deportivos Especializados de Alto Rendimiento",75,6]
["SD-039-01-01 ","Aprobación de Estatuto y Otorgamiento de Personería Jurídica de Organizaciones Sociales",78,6]
["MD-022-07-03 ","Otorgamiento de personería jurídica para Clubes Deportivos Especializados Formativos",80,6]
["MD-031-02-02 ","Registro de directorio de Ligas, Asociaciones y Federaciones referentes al Deporte, la Educación Física y la Recreación",130,6]
["MD-022-08-02","Aprobación de Reforma Estatutaria de Organizaciones Deportivas",134,6]
["MD-024-01-01 ","Emisión de Copias Simples y/o Certificadas de Documentos que Reposan en los Archivos de la Secretaría del Deporte",250,6]
["MD-023-01-02","Inscripción a Actividades Deportivas de Fútbol Ejecutadas en los Centros Activos",267,10]
["MD-011-01-02 ","Reserva de Instalaciones para Actividades Deportivas y Recreativas.",297,10]
["MD-013-01-01 ","Capacitación en el Ámbito de Cultura Física y/o Ciencias Aplicadas bajo requerimiento",313,10]
["MD-022-07-01","Otorgamiento de personería jurídica para Clubes Deportivos Básicos",368,10]
["MD-003-01-05 ","Asignación de Recursos Públicos para Ejecución de Actividades Referentes a la Cultura Física a Entidades Públicas a través de Convenios",452,10]
["MD-031-02-03","Registro de directorio para Clubes Deportivos Básicos, Especializados, de Deporte Adaptado y/o Paralímpicos",531,10]
["MD-003-02-03","Modificación a la Planificación Operativa Anual de Organizaciones Deportivas",757,10]
["MD-003-01-01 ","Asignación de Recursos Públicos para Ejecución de Actividades Referentes a la Cultura Física a Organizaciones Deportivas a través de Convenios ",1158,10]
["MD-003-02-02","Asignación de Recursos Públicos a la Planificación Operativa Anual de Organizaciones Deportivas",2152,10]
["MD-007-04-02 ","Evaluación Médica Deportológica",8554,10]
["MD-007-05-01 ","Consulta Médica a Deportistas",18678,10]
["MD-034-03-02","Participación en Actividades Físicas Deportivas Recreativas",117264,10]

{"sheet":"VOLUMEN DE QUEJAS","index":2,"n_rows":47,"n_cols":6,"rows_kept":47,"cut":false,"hidden":false,"merged":[[0,0,0,5],[1,0,1,5]]}
["PRIORIZACIÓN DE TRÁMITES ADMINISTRATIVOS"]
["VOLUMEN DE QUEJAS"]
[]
["IDENTIFICADOR","TRÁMITE","VOLUMEN DEMANDA","VOLUMEN DE QUEJAS","PORCENTAJE","PUNTUACIÓN"]
["MD-006-01-01 ","Asesoramiento Técnico Especializado en Cultura Física.",0,0,0,0]
["MD-035-01-01 ","Autorización de Registro de Domicilio (Libre Tránsito) a Deportistas Menores de Edad",0,0,0,0]
["MD-035-01-02 ","Autorización de Registro de Domicilio (Libre Tránsito) para Deportistas Mayores de Edad",0,0,0,0]
["SD-038-01-01 ","Declaración de Inactividad de Organizaciones Deportivas",0,0,0,0]
["MD-003-02-04 ","Incremento a la Planificación Operativa Anual de Organizaciones Deportivas",0,0,0,0]
["MD-023-01-01","Inscripción a Actividades Deportivas de Natación Ejecutadas en los Centros Activos",0,0,0,0]
[" MD-023-02-01 ","Inscripción a Colonias Vacacionales Ejecutadas en los Centros Activos",0,0,0,0]
["MD-036-01-01 ","Inscripción de deportistas a Juegos Deportivos Nacionales o de Deporte Adaptado",0,0,0,0]
["MD-022-07-05","Otorgamiento de personería jurídica para Clubes Deportivos de Deporte Adaptado y/o Paralímpico",0,0,0,0]
["MD-034-02-01 ","Inscripción a Actividades Deportivas Extra-Escolares",3,0,0,0]
["MD-034-01-01","Inscripción en Escuelas de Iniciación Deportiva",3,0,0,0]
["MD-022-07-08","Otorgamiento de personería jurídica para Federaciones Deportivas",4,0,0,0]
["SD-038-01-02 "," Reactivación del funcionamiento de una Organización Deportivas",5,0,0,0]
["MD-032-01-01","Registro de Administrador de una Federación Deportiva Provincial",5,0,0,0]
["SD-039-01-04 ","Registro de Inclusión y/o Exclusión de Miembros de Organizaciones Sociales",8,0,0,0]
["SD-039-01-02 ","Aprobación de Reformas al Estatuto de Organizaciones Sociales",9,0,0,0]
["SD-039-01-05 ","Disolución de Organizaciones Sociales",10,0,0,0]
[" SD-038-02-01","Disolución y Liquidación Voluntaria de Organizaciones Deportivas",12,0,0,0]
["MD-003-01-03 ","Asignación de Recursos Públicos para Ejecución de Actividades Referentes a la Cultura Física a Entidades Privadas no Deportivas a través de Convenios",14,0,0,0]
["MD-011-01-01 ","Reserva de Instalaciones Deportivas y Recreativas Para Eventos",14,0,0,0]
["MD-022-07-07","Otorgamiento de personería jurídica para Ligas, Asociaciones Deportivas o Federaciones Cantonales",28,0,0,0]
["MD-034-03-01","Apertura de Puntos para Desarrollo de Actividades Deportivas Recreativas",30,0,0,0]
["MD-032-01-02 ","Registro de Administrador Financiero",31,0,0,0]
["MD-022-07-06 ","Otorgamiento de personería jurídica para Clubes Profesionales",37,0,0,0]
["SD-039-01-03 ","Registro de Directiva para Organizaciones Sociales",50,0,0,0]
["MD-022-07-04","Otorgamiento de personería jurídica para Clubes Deportivos Especializados de Alto Rendimiento",75,0,0,0]
["SD-039-01-01 ","Aprobación de Estatuto y Otorgamiento de Personería Jurídica de Organizaciones Sociales",78,0,0,0]
["MD-022-07-03 ","Otorgamiento de personería jurídica para Clubes Deportivos Especializados Formativos",80,0,0,0]
["MD-031-02-02 ","Registro de directorio de Ligas, Asociaciones y Federaciones referentes al Deporte, la Educación Física y la Recreación",130,0,0,0]
["MD-022-08-02","Aprobación de Reforma Estatutaria de Organizaciones Deportivas",134,0,0,0]
["MD-024-01-01 ","Emisión de Copias Simples y/o Certificadas de Documentos que Reposan en los Archivos de la Secretaría del Deporte",250,0,0,0]
["MD-023-01-02","Inscripción a Actividades Deportivas de Fútbol Ejecutadas en los Centros Activos",267,0,0,0]
["MD-011-01-02 ","Reserva de Instalaciones para Actividades Deportivas y Recreativas.",297,0,0,0]
["MD-013-01-01 ","Capacitación en el Ámbito de Cultura Física y/o Ciencias Aplicadas bajo requerimiento",313,0,0,0]
["MD-022-07-01","Otorgamiento de personería jurídica para Clubes Deportivos Básicos",368,0,0,0]
["MD-003-01-05 ","Asignación de Recursos Públicos para Ejecución de Actividades Referentes a la Cultura Física a Entidades Públicas a través de Convenios",452,0,0,0]
["MD-031-02-03","Registro de directorio para Clubes Deportivos Básicos, Especializados, de Deporte Adaptado y/o Paralímpicos",531,0,0,0]
["MD-003-02-03","Modificación a la Planificación Operativa Anual de Organizaciones Deportivas",757,0,0,0]
["MD-003-01-01 ","Asignación de Recursos Públicos para Ejecución de Actividades Referentes a la Cultura Física a Organizaciones Deportivas a través de Convenios ",1158,0,0,0]
["MD-003-02-02","Asignación de Recursos Públicos a la Planificación Operativa Anual de Organizaciones Deportivas",2152,0,0,0]
["MD-007-04-02 ","Evaluación Médica Deportológica",8554,0,0,0]
["MD-007-05-01 ","Consulta Médica a Deportistas",18678,0,0,0]
["MD-034-03-02","Participación en Actividades Físicas Deportivas Recreativas",117264,0,0,0]

{"sheet":"COSTO ADMINISTRACIÓN PÚBLICA","index":3,"n_rows":48,"n_cols":9,"rows_kept":48,"cut":false,"hidden":false,"merged":[[0,0,0,5],[1,0,1,5],[3,0,4,0],[3,1,4,1],[3,2,3,4],[3,5,4,5]]}
["PRIORIZACIÓN DE TRÁMITES ADMINISTRATIVOS"]
["COSTOS PARA LA ADMINISTRACIÓN PÚBLICA"]
[]
["IDENTIFICADOR","TRÁMITE","INSUMOS PARA COSTO",null,null,"COSTO PARA LA ADM. PÚBLICA",null,"SBU",400]
[null,null,"TIEMPO (HORAS)","COSTO PERSONAL","COSTO RECURSOS"]
["MD-006-01-01 ","Asesoramiento Técnico Especializado en Cultura Física.",0,{"$f":"C6*$I$4/160","v":0},10,{"$f":"D6+E6","v":10}]
["MD-035-01-01 ","Autorización de Registro de Domicilio (Libre Tránsito) a Deportistas Menores de Edad",0,{"$f":"C7*$I$4/160","v":0},30,{"$f":"D7+E7","v":30}]
["MD-035-01-02 ","Autorización de Registro de Domicilio (Libre Tránsito) para Deportistas Mayores de Edad",0,0,30,30]
["SD-038-01-01 ","Declaración de Inactividad de Organizaciones Deportivas",0,0,30,30]
["MD-003-02-04 ","Incremento a la Planificación Operativa Anual de Organizaciones Deportivas",30,75,30,105]
["MD-023-01-01","Inscripción a Actividades Deportivas de Natación Ejecutadas en los Centros Activos",0,0,5,5]
[" MD-023-02-01 ","Inscripción a Colonias Vacacionales Ejecutadas en los Centros Activos",0,0,5,5]
["MD-036-01-01 ","Inscripción de deportistas a Juegos Deportivos Nacionales o de Deporte Adaptado",0,0,30,30]
["MD-022-07-05","Otorgamiento de personería jurídica para Clubes Deportivos de Deporte Adaptado y/o Paralímpico",30,75,80,155]
["MD-034-02-01 ","Inscripción a Actividades Deportivas Extra-Escolares",0,0,30,30]
["MD-034-01-01","Inscripción en Escuelas de Iniciación Deportiva",0,0,30,30]
["MD-022-07-08","Otorgamiento de personería jurídica para Federaciones Deportivas",30,75,30,105]
["SD-038-01-02 "," Reactivación del funcionamiento de una Organización Deportivas",30,75,30,105]
["MD-032-01-01","Registro de Administrador de una Federación Deportiva Provincial",30,75,30,105]
["SD-039-01-04 ","Registro de Inclusión y/o Exclusión de Miembros de Organizaciones Sociales",30,75,30,105]
["SD-039-01-02 ","Aprobación de Reformas al Estatuto de Organizaciones Sociales",30,75,30,105]
["SD-039-01-05 ","Disolución de Organizaciones Sociales",30,75,30,105]
[" SD-038-02-01","Disolución y Liquidación Voluntaria de Organizaciones Deportivas",30,75,30,105]
["MD-003-01-03 ","Asignación de Recursos Públicos para Ejecución de Actividades Referentes a la Cultura Física a Entidades Privadas no Deportivas a través de Convenios",30,75,30,105]
["MD-011-01-01 ","Reserva de Instalaciones Deportivas y Recreativas Para Eventos",0,0,30,30]
["MD-022-07-07","Otorgamiento de personería jurídica para Ligas, Asociaciones Deportivas o Federaciones Cantonales",30,75,30,105]
["MD-034-03-01","Apertura de Puntos para Desarrollo de Actividades Deportivas Recreativas",0,0,30,30]
["MD-032-01-02 ","Registro de Administrador Financiero",30,75,30,105]
["MD-022-07-06 ","Otorgamiento de personería jurídica para Clubes Profesionales",30,75,30,105]
["SD-039-01-03 ","Registro de Directiva para Organizaciones Sociales",30,75,30,105]
["MD-022-07-04","Otorgamiento de personería jurídica para Clubes Deportivos Especializados de Alto Rendimiento",30,75,30,105]
["SD-039-01-01 ","Aprobación de Estatuto y Otorgamiento de Personería Jurídica de Organizaciones Sociales",30,75,30,105]
["MD-022-07-03 ","Otorgamiento de personería jurídica para Clubes Deportivos Especializados Formativos",30,75,30,105]
["MD-031-02-02 ","Registro de directorio de Ligas, Asociaciones y Federaciones referentes al Deporte, la Educación Física y la Recreación",30,75,30,105]
["MD-022-08-02","Aprobación de Reforma Estatutaria de Organizaciones Deportivas",30,75,30,105]
["MD-024-01-01 ","Emisión de Copias Simples y/o Certificadas de Documentos que Reposan en los Archivos de la Secretaría del Deporte",30,75,30,105]
["MD-023-01-02","Inscripción a Actividades Deportivas de Fútbol Ejecutadas en los Centros Activos",0,0,5,5]
["MD-011-01-02 ","Reserva de Instalaciones para Actividades Deportivas y Recreativas.",0,0,30,30]
["MD-013-01-01 ","Capacitación en el Ámbito de Cultura Física y/o Ciencias Aplicadas bajo requerimiento",0,0,30,30]
["MD-022-07-01","Otorgamiento de personería jurídica para Clubes Deportivos Básicos",30,75,30,105]
["MD-003-01-05 ","Asignación de Recursos Públicos para Ejecución de Actividades Referentes a la Cultura Física a Entidades Públicas a través de Convenios",30,75,30,105]
["MD-031-02-03","Registro de directorio para Clubes Deportivos Básicos, Especializados, de Deporte Adaptado y/o Paralímpicos",30,75,30,105]
["MD-003-02-03","Modificación a la Planificación Operativa Anual de Organizaciones Deportivas",0,0,30,30]
["MD-003-01-01 ","Asignación de Recursos Públicos para Ejecución de Actividades Referentes a la Cultura Física a Organizaciones Deportivas a través de Convenios ",30,75,30,105]
["MD-003-02-02","Asignación de Recursos Públicos a la Planificación Operativa Anual de Organizaciones Deportivas",30,75,30,105]
["MD-007-04-02 ","Evaluación Médica Deportológica",0,0,30,30]
["MD-007-05-01 ","Consulta Médica a Deportistas",0,0,30,30]
["MD-034-03-02","Participación en Actividades Físicas Deportivas Recreativas",0,0,30,30]

{"sheet":"RESUMEN DE COSTOS AP","index":4,"n_rows":47,"n_cols":4,"rows_kept":47,"cut":false,"hidden":false,"merged":[[0,0,0,5],[1,0,1,5]]}
["PRIORIZACIÓN DE TRÁMITES ADMINISTRATIVOS"]
["COSTOS PARA LA ADMINISTRACIÓN PÚBLICA"]
[]
["IDENTIFICADOR","TRÁMITE","COSTO PARA LA ADM. PÚBLICA","PUNTUACIÓN"]
["MD-006-01-01 ","Asesoramiento Técnico Especializado en Cultura Física.",10,5]
["MD-035-01-01 ","Autorización de Registro de Domicilio (Libre Tránsito) a Deportistas Menores de Edad",30,5]
["MD-035-01-02 ","Autorización de Registro de Domicilio (Libre Tránsito) para Deportistas Mayores de Edad",30,5]
["SD-038-01-01 ","Declaración de Inactividad de Organizaciones Deportivas",30,5]
["MD-003-02-04 ","Incremento a la Planificación Operativa Anual de Organizaciones Deportivas",105,5]
["MD-023-01-01","Inscripción a Actividades Deportivas de Natación Ejecutadas en los Centros Activos",5,5]
[" MD-023-02-01 ","Inscripción a Colonias Vacacionales Ejecutadas en los Centros Activos",5,5]
["MD-036-01-01 ","Inscripción de deportistas a Juegos Deportivos Nacionales o de Deporte Adaptado",30,5]
["MD-022-07-05","Otorgamiento de personería jurídica para Clubes Deportivos de Deporte Adaptado y/o Paralímpico",155,5]
["MD-034-02-01 ","Inscripción a Actividades Deportivas Extra-Escolares",30,5]
["MD-034-01-01","Inscripción en Escuelas de Iniciación Deportiva",30,5]
["MD-022-07-08","Otorgamiento de personería jurídica para Federaciones Deportivas",105,5]
["SD-038-01-02 "," Reactivación del funcionamiento de una Organización Deportivas",105,5]
["MD-032-01-01","Registro de Administrador de una Federación Deportiva Provincial",105,5]
["SD-039-01-04 ","Registro de Inclusión y/o Exclusión de Miembros de Organizaciones Sociales",105,5]
["SD-039-01-02 ","Aprobación de Reformas al Estatuto de Organizaciones Sociales",105,10]
["SD-039-01-05 ","Disolución de Organizaciones Sociales",105,10]
[" SD-038-02-01","Disolución y Liquidación Voluntaria de Organizaciones Deportivas",105,10]
["MD-003-01-03 ","Asignación de Recursos Públicos para Ejecución de Actividades Referentes a la Cultura Física a Entidades Privadas no Deportivas a través de Convenios",105,10]
["MD-011-01-01 ","Reserva de Instalaciones Deportivas y Recreativas Para Eventos",30,10]
["MD-022-07-07","Otorgamiento de personería jurídica para Ligas, Asociaciones Deportivas o Federaciones Cantonales",105,10]
["MD-034-03-01","Apertura de Puntos para Desarrollo de Actividades Deportivas Recreativas",30,10]
["MD-032-01-02 ","Registro de Administrador Financiero",105,10]
["MD-022-07-06 ","Otorgamiento de personería jurídica para Clubes Profesionales",105,10]
["SD-039-01-03 ","Registro de Directiva para Organizaciones Sociales",105,10]
["MD-022-07-04","Otorgamiento de personería jurídica para Clubes Deportivos Especializados de Alto Rendimiento",105,10]
["SD-039-01-01 ","Aprobación de Estatuto y Otorgamiento de Personería Jurídica de Organizaciones Sociales",105,10]
["MD-022-07-03 ","Otorgamiento de personería jurídica para Clubes Deportivos Especializados Formativos",105,10]
["MD-031-02-02 ","Registro de directorio de Ligas, Asociaciones y Federaciones referentes al Deporte, la Educación Física y la Recreación",105,10]
["MD-022-08-02","Aprobación de Reforma Estatutaria de Organizaciones Deportivas",105,10]
["MD-024-01-01 ","Emisión de Copias Simples y/o Certificadas de Documentos que Reposan en los Archivos de la Secretaría del Deporte",105,10]
["MD-023-01-02","Inscripción a Actividades Deportivas de Fútbol Ejecutadas en los Centros Activos",5,10]
["MD-011-01-02 ","Reserva de Instalaciones para Actividades Deportivas y Recreativas.",30,10]
["MD-013-01-01 ","Capacitación en el Ámbito de Cultura Física y/o Ciencias Aplicadas bajo requerimiento",30,10]
["MD-022-07-01","Otorgamiento de personería jurídica para Clubes Deportivos Básicos",105,10]
["MD-003-01-05 ","Asignación de Recursos Públicos para Ejecución de Actividades Referentes a la Cultura Física a Entidades Públicas a través de Convenios",105,10]
["MD-031-02-03","Registro de directorio para Clubes Deportivos Básicos, Especializados, de Deporte Adaptado y/o Paralímpicos",105,10]
["MD-003-02-03","Modificación a la Planificación Operativa Anual de Organizaciones Deportivas",30,10]
["MD-003-01-01 ","Asignación de Recursos Públicos para Ejecución de Actividades Referentes a la Cultura Física a Organizaciones Deportivas a través de Convenios ",105,10]
["MD-003-02-02","Asignación de Recursos Públicos a la Planificación Operativa Anual de Organizaciones Deportivas",105,10]
["MD-007-04-02 ","Evaluación Médica Deportológica",30,20]
["MD-007-05-01 ","Consulta Médica a Deportistas",30,20]
["MD-034-03-02","Participación en Actividades Físicas Deportivas Recreativas",30,20]

{"sheet":"AUXILIAR COSTO ADMINISTRACIÓN","index":5,"n_rows":20,"n_cols":3,"rows_kept":20,"cut":false,"hidden":false,"merged":[[1,1,1,2]]}
[]
["TRÁMITE:"]
["NO.","ACTIVIDAD","TIEMPO (HORAS)"]
[1]
[2]
[3]
[4]
[5]
[6]
[7]
[8]
[9]
[10]
[11]
[12]
[13]
[14]
[15]
[]
[null,"SUMATORIA ACTIVIDADES",{"$f":"SUM(C4:C19)","v":0}]

{"sheet":"TIEMPO DE RESPUESTA","index":6,"n_rows":47,"n_cols":4,"rows_kept":47,"cut":false,"hidden":false,"merged":[[0,0,0,3],[1,0,1,3]]}
["PRIORIZACIÓN DE TRÁMITES ADMINISTRATIVOS"]
["TIEMPO DE RESPUESTA"]
[]
["IDENTIFICADOR","TRÁMITE","TIEMPO RESPUESTA (horas laborables)","PUNTUACIÓN"]
["MD-006-01-01 ","Asesoramiento Técnico Especializado en Cultura Física.",0.5,0]
["MD-035-01-01 ","Autorización de Registro de Domicilio (Libre Tránsito) a Deportistas Menores de Edad",24,0]
["MD-035-01-02 ","Autorización de Registro de Domicilio (Libre Tránsito) para Deportistas Mayores de Edad",24,0]
["SD-038-01-01 ","Declaración de Inactividad de Organizaciones Deportivas",24,0]
["MD-003-02-04 ","Incremento a la Planificación Operativa Anual de Organizaciones Deportivas",120,30]
["MD-023-01-01","Inscripción a Actividades Deportivas de Natación Ejecutadas en los Centros Activos",1,0]
[" MD-023-02-01 ","Inscripción a Colonias Vacacionales Ejecutadas en los Centros Activos",1,0]
["MD-036-01-01 ","Inscripción de deportistas a Juegos Deportivos Nacionales o de Deporte Adaptado",1,0]
["MD-022-07-05","Otorgamiento de personería jurídica para Clubes Deportivos de Deporte Adaptado y/o Paralímpico",120,30]
["MD-034-02-01 ","Inscripción a Actividades Deportivas Extra-Escolares",0.5,0]
["MD-034-01-01","Inscripción en Escuelas de Iniciación Deportiva",0.25,0]
["MD-022-07-08","Otorgamiento de personería jurídica para Federaciones Deportivas",120,30]
["SD-038-01-02 "," Reactivación del funcionamiento de una Organización Deportivas",120,30]
["MD-032-01-01","Registro de Administrador de una Federación Deportiva Provincial",120,30]
["SD-039-01-04 ","Registro de Inclusión y/o Exclusión de Miembros de Organizaciones Sociales",120,30]
["SD-039-01-02 ","Aprobación de Reformas al Estatuto de Organizaciones Sociales",160,30]
["SD-039-01-05 ","Disolución de Organizaciones Sociales",120,30]
[" SD-038-02-01","Disolución y Liquidación Voluntaria de Organizaciones Deportivas",120,30]
["MD-003-01-03 ","Asignación de Recursos Públicos para Ejecución de Actividades Referentes a la Cultura Física a Entidades Privadas no Deportivas a través de Convenios",120,30]
["MD-011-01-01 ","Reserva de Instalaciones Deportivas y Recreativas Para Eventos",40,0]
["MD-022-07-07","Otorgamiento de personería jurídica para Ligas, Asociaciones Deportivas o Federaciones Cantonales",120,30]
["MD-034-03-01","Apertura de Puntos para Desarrollo de Actividades Deportivas Recreativas",24,0]
["MD-032-01-02 ","Registro de Administrador Financiero",120,30]
["MD-022-07-06 ","Otorgamiento de personería jurídica para Clubes Profesionales",120,30]
["SD-039-01-03 ","Registro de Directiva para Organizaciones Sociales",120,30]
["MD-022-07-04","Otorgamiento de personería jurídica para Clubes Deportivos Especializados de Alto Rendimiento",120,30]
["SD-039-01-01 ","Aprobación de Estatuto y Otorgamiento de Personería Jurídica de Organizaciones Sociales",160,30]
["MD-022-07-03 ","Otorgamiento de personería jurídica para Clubes Deportivos Especializados Formativos",120,30]
["MD-031-02-02 ","Registro de directorio de Ligas, Asociaciones y Federaciones referentes al Deporte, la Educación Física y la Recreación",120,30]
["MD-022-08-02","Aprobación de Reforma Estatutaria de Organizaciones Deportivas",120,30]
["MD-024-01-01 ","Emisión de Copias Simples y/o Certificadas de Documentos que Reposan en los Archivos de la Secretaría del Deporte",64,30]
["MD-023-01-02","Inscripción a Actividades Deportivas de Fútbol Ejecutadas en los Centros Activos",1,0]
["MD-011-01-02 ","Reserva de Instalaciones para Actividades Deportivas y Recreativas.",0.33,0]
["MD-013-01-01 ","Capacitación en el Ámbito de Cultura Física y/o Ciencias Aplicadas bajo requerimiento",1,0]
["MD-022-07-01","Otorgamiento de personería jurídica para Clubes Deportivos Básicos",120,30]
["MD-003-01-05 ","Asignación de Recursos Públicos para Ejecución de Actividades Referentes a la Cultura Física a Entidades Públicas a través de Convenios",120,30]
["MD-031-02-03","Registro de directorio para Clubes Deportivos Básicos, Especializados, de Deporte Adaptado y/o Paralímpicos",120,30]
["MD-003-02-03","Modificación a la Planificación Operativa Anual de Organizaciones Deportivas",32,0]
["MD-003-01-01 ","Asignación de Recursos Públicos para Ejecución de Actividades Referentes a la Cultura Física a Organizaciones Deportivas a través de Convenios ",120,30]
["MD-003-02-02","Asignación de Recursos Públicos a la Planificación Operativa Anual de Organizaciones Deportivas",120,30]
["MD-007-04-02 ","Evaluación Médica Deportológica",32,0]
["MD-007-05-01 ","Consulta Médica a Deportistas",0.5,0]
["MD-034-03-02","Participación en Actividades Físicas Deportivas Recreativas",1,0]

{"sheet":"CANAL ATENCIÓN","index":7,"n_rows":47,"n_cols":12,"rows_kept":47,"cut":false,"hidden":false,"merged":[[0,0,0,3],[1,0,1,3]]}
["PRIORIZACIÓN DE TRÁMITES ADMINISTRATIVOS"]
["CANAL DE ATENCIÓN"]
[null,null,null,null,null,null,null,null,"Totalmente en Línea",null,null,0]
["IDENTIFICADOR","TRÁMITE","CANAL ATENCIÓN","PUNTUACIÓN",null,null,null,null,"No se completa totalmente en línea.",null,null,10]
["MD-006-01-01 ","Asesoramiento Técnico Especializado en Cultura Física.","No se completa totalmente en línea.",{"$f":"IF(ISBLANK(C5),\"\",IF(C5=\"Totalmente en línea\",0,IF(C5=\"Inicia en línea\",6,10)))","v":10}]
["MD-035-01-01 ","Autorización de Registro de Domicilio (Libre Tránsito) a Deportistas Menores de Edad","No se completa totalmente en línea.",{"$f":"IF(ISBLANK(C6),\"\",IF(C6=\"Totalmente en línea\",0,IF(C6=\"Inicia en línea\",6,10)))","v":10}]
["MD-035-01-02 ","Autorización de Registro de Domicilio (Libre Tránsito) para Deportistas Mayores de Edad","No se completa totalmente en línea.",10]
["SD-038-01-01 ","Declaración de Inactividad de Organizaciones Deportivas","No se completa totalmente en línea.",10]
["MD-003-02-04 ","Incremento a la Planificación Operativa Anual de Organizaciones Deportivas","No se completa totalmente en línea.",10]
["MD-023-01-01","Inscripción a Actividades Deportivas de Natación Ejecutadas en los Centros Activos","No se completa totalmente en línea.",10]
[" MD-023-02-01 ","Inscripción a Colonias Vacacionales Ejecutadas en los Centros Activos","No se completa totalmente en línea.",10]
["MD-036-01-01 ","Inscripción de deportistas a Juegos Deportivos Nacionales o de Deporte Adaptado","No se completa totalmente en línea.",10]
["MD-022-07-05","Otorgamiento de personería jurídica para Clubes Deportivos de Deporte Adaptado y/o Paralímpico","No se completa totalmente en línea.",10]
["MD-034-02-01 ","Inscripción a Actividades Deportivas Extra-Escolares","No se completa totalmente en línea.",10]
["MD-034-01-01","Inscripción en Escuelas de Iniciación Deportiva","No se completa totalmente en línea.",10]
["MD-022-07-08","Otorgamiento de personería jurídica para Federaciones Deportivas","No se completa totalmente en línea.",10]
["SD-038-01-02 "," Reactivación del funcionamiento de una Organización Deportivas","No se completa totalmente en línea.",10]
["MD-032-01-01","Registro de Administrador de una Federación Deportiva Provincial","No se completa totalmente en línea.",10]
["SD-039-01-04 ","Registro de Inclusión y/o Exclusión de Miembros de Organizaciones Sociales","No se completa totalmente en línea.",10]
["SD-039-01-02 ","Aprobación de Reformas al Estatuto de Organizaciones Sociales","No se completa totalmente en línea.",10]
["SD-039-01-05 ","Disolución de Organizaciones Sociales","No se completa totalmente en línea.",10]
[" SD-038-02-01","Disolución y Liquidación Voluntaria de Organizaciones Deportivas","No se completa totalmente en línea.",10]
["MD-003-01-03 ","Asignación de Recursos Públicos para Ejecución de Actividades Referentes a la Cultura Física a Entidades Privadas no Deportivas a través de Convenios","No se completa totalmente en línea.",10]
["MD-011-01-01 ","Reserva de Instalaciones Deportivas y Recreativas Para Eventos","No se completa totalmente en línea.",10]
["MD-022-07-07","Otorgamiento de personería jurídica para Ligas, Asociaciones Deportivas o Federaciones Cantonales","No se completa totalmente en línea.",10]
["MD-034-03-01","Apertura de Puntos para Desarrollo de Actividades Deportivas Recreativas","No se completa totalmente en línea.",10]
["MD-032-01-02 ","Registro de Administrador Financiero","No se completa totalmente en línea.",10]
["MD-022-07-06 ","Otorgamiento de personería jurídica para Clubes Profesionales","No se completa totalmente en línea.",10]
["SD-039-01-03 ","Registro de Directiva para Organizaciones Sociales","No se completa totalmente en línea.",10]
["MD-022-07-04","Otorgamiento de personería jurídica para Clubes Deportivos Especializados de Alto Rendimiento","No se completa totalmente en línea.",10]
["SD-039-01-01 ","Aprobación de Estatuto y Otorgamiento de Personería Jurídica de Organizaciones Sociales","No se completa totalmente en línea.",10]
["MD-022-07-03 ","Otorgamiento de personería jurídica para Clubes Deportivos Especializados Formativos","No se completa totalmente en línea.",10]
["MD-031-02-02 ","Registro de directorio de Ligas, Asociaciones y Federaciones referentes al Deporte, la Educación Física y la Recreación","No se completa totalmente en línea.",10]
["MD-022-08-02","Aprobación de Reforma Estatutaria de Organizaciones Deportivas","No se completa totalmente en línea.",10]
["MD-024-01-01 ","Emisión de Copias Simples y/o Certificadas de Documentos que Reposan en los Archivos de la Secretaría del Deporte","No se completa totalmente en línea.",10]
["MD-023-01-02","Inscripción a Actividades Deportivas de Fútbol Ejecutadas en los Centros Activos","Totalmente en Línea",0]
["MD-011-01-02 ","Reserva de Instalaciones para Actividades Deportivas y Recreativas.","Totalmente en Línea",0]
["MD-013-01-01 ","Capacitación en el Ámbito de Cultura Física y/o Ciencias Aplicadas bajo requerimiento","No se completa totalmente en línea.",10]
["MD-022-07-01","Otorgamiento de personería jurídica para Clubes Deportivos Básicos","No se completa totalmente en línea.",10]
["MD-003-01-05 ","Asignación de Recursos Públicos para Ejecución de Actividades Referentes a la Cultura Física a Entidades Públicas a través de Convenios","No se completa totalmente en línea.",10]
["MD-031-02-03","Registro de directorio para Clubes Deportivos Básicos, Especializados, de Deporte Adaptado y/o Paralímpicos","No se completa totalmente en línea.",10]
["MD-003-02-03","Modificación a la Planificación Operativa Anual de Organizaciones Deportivas","No se completa totalmente en línea.",10]
["MD-003-01-01 ","Asignación de Recursos Públicos para Ejecución de Actividades Referentes a la Cultura Física a Organizaciones Deportivas a través de Convenios ","No se completa totalmente en línea.",10]
["MD-003-02-02","Asignación de Recursos Públicos a la Planificación Operativa Anual de Organizaciones Deportivas","No se completa totalmente en línea.",10]
["MD-007-04-02 ","Evaluación Médica Deportológica","No se completa totalmente en línea.",10]
["MD-007-05-01 ","Consulta Médica a Deportistas","No se completa totalmente en línea.",10]
["MD-034-03-02","Participación en Actividades Físicas Deportivas Recreativas","No se completa totalmente en línea.",10]

{"sheet":"RESUMEN","index":8,"n_rows":46,"n_cols":25,"rows_kept":46,"cut":false,"hidden":false,"merged":[[1,0,2,0],[1,1,2,1],[1,2,2,2],[1,3,2,3],[1,4,2,4],[1,9,1,10],[1,11,1,12],[1,13,2,13],[0,2,0,6],[0,7,0,12],[1,5,2,5],[1,6,2,6],[1,7,1,8]]}
[null,null,"BÁSICOS",null,null,null,null,"ADICIONALES"]
["ID trámite","Nombre del trámite","Demanda","Quejas","Costo para administración","Tiempo de respuesta","Canal de atención","Necesidades ciudadanas",null,"Susceptibilidad a corrupción",null,"Volumen de devoluciones",null,"PUNTAJE TOTAL"]
[null,null,null,null,null,null,null,"Criterio","Puntuación","Criterio","Puntuación","Criterio","Puntuación",null,null,null,null,null,null,null,"demanda",0,3,6,10]
["MD-006-01-01 ","Asesoramiento Técnico Especializado en Cultura Física.",0,0,5,0,{"$f":"IF(ISBLANK(F4),\"\",IF(F4=\"Totalmente en línea\",0,IF(F4=\"Inicia en línea\",6,10)))","v":10},"NO",{"$f":"IF(H4=\"SI\",5,0)","v":0},"NO",{"$f":"IF(J4=\"SI\",10,0)","v":0},"NO",{"$f":"IF(L4=\"SI\",5,0)","v":0},{"$f":"SUM(C4:G4,I4,K4,M4)","v":15},null,null,null,null,null,null,"quejas",0,4,10]
["MD-035-01-01 ","Autorización de Registro de Domicilio (Libre Tránsito) a Deportistas Menores de Edad",0,0,5,0,{"$f":"IF(ISBLANK(F5),\"\",IF(F5=\"Totalmente en línea\",0,IF(F5=\"Inicia en línea\",6,10)))","v":10},"NO",{"$f":"IF(H5=\"SI\",5,0)","v":0},"NO",{"$f":"IF(J5=\"SI\",10,0)","v":0},"NO",{"$f":"IF(L5=\"SI\",5,0)","v":0},{"$f":"SUM(C5:G5,I5,K5,M5)","v":15},null,null,null,null,null,null,"cpa",5,10,20]
["MD-035-01-02 ","Autorización de Registro de Domicilio (Libre Tránsito) para Deportistas Mayores de Edad",0,0,5,0,10,"NO",0,"NO",0,"NO",0,15,null,null,null,null,null,null,"tr",0,30]
["SD-038-01-01 ","Declaración de Inactividad de Organizaciones Deportivas",0,0,5,0,10,"NO",0,"NO",0,"NO",0,15,null,null,null,null,null,null,"ca",0,10]
["MD-003-02-04 ","Incremento a la Planificación Operativa Anual de Organizaciones Deportivas",0,0,5,30,10,"NO",0,"NO",0,"NO",0,45,null,null,null,null,null,null,null,"SI","NO"]
["MD-023-01-01","Inscripción a Actividades Deportivas de Natación Ejecutadas en los Centros Activos",0,0,5,0,10,"NO",0,"NO",0,"NO",0,15]
[" MD-023-02-01 ","Inscripción a Colonias Vacacionales Ejecutadas en los Centros Activos",0,0,5,0,10,"NO",0,"NO",0,"NO",0,15]
["MD-036-01-01 ","Inscripción de deportistas a Juegos Deportivos Nacionales o de Deporte Adaptado",0,0,5,0,10,"NO",0,"NO",0,"NO",0,15]
["MD-022-07-05","Otorgamiento de personería jurídica para Clubes Deportivos de Deporte Adaptado y/o Paralímpico",0,0,5,30,10,"NO",0,"NO",0,"NO",0,45]
["MD-034-02-01 ","Inscripción a Actividades Deportivas Extra-Escolares",3,0,5,0,10,"NO",0,"NO",0,"NO",0,18]
["MD-034-01-01","Inscripción en Escuelas de Iniciación Deportiva",3,0,5,0,10,"NO",0,"NO",0,"NO",0,18]
["MD-022-07-08","Otorgamiento de personería jurídica para Federaciones Deportivas",3,0,5,30,10,"NO",0,"NO",0,"NO",0,48]
["SD-038-01-02 "," Reactivación del funcionamiento de una Organización Deportivas",3,0,5,30,10,"NO",0,"NO",0,"NO",0,48]
["MD-032-01-01","Registro de Administrador de una Federación Deportiva Provincial",3,0,5,30,10,"NO",0,"NO",0,"NO",0,48]
["SD-039-01-04 ","Registro de Inclusión y/o Exclusión de Miembros de Organizaciones Sociales",3,0,5,30,10,"NO",0,"NO",0,"NO",0,48]
["SD-039-01-02 ","Aprobación de Reformas al Estatuto de Organizaciones Sociales",3,0,10,30,10,"NO",0,"NO",0,"NO",0,53]
["SD-039-01-05 ","Disolución de Organizaciones Sociales",3,0,10,30,10,"NO",0,"NO",0,"NO",0,53]
[" SD-038-02-01","Disolución y Liquidación Voluntaria de Organizaciones Deportivas",3,0,10,30,10,"NO",0,"NO",0,"NO",0,53]
["MD-003-01-03 ","Asignación de Recursos Públicos para Ejecución de Actividades Referentes a la Cultura Física a Entidades Privadas no Deportivas a través de Convenios",3,0,10,30,10,"NO",0,"NO",0,"NO",0,53]
["MD-011-01-01 ","Reserva de Instalaciones Deportivas y Recreativas Para Eventos",3,0,10,0,10,"NO",0,"NO",0,"NO",0,23]
["MD-022-07-07","Otorgamiento de personería jurídica para Ligas, Asociaciones Deportivas o Federaciones Cantonales",6,0,10,30,10,"NO",0,"NO",0,"NO",0,56]
["MD-034-03-01","Apertura de Puntos para Desarrollo de Actividades Deportivas Recreativas",6,0,10,0,10,"NO",0,"NO",0,"NO",0,26]
["MD-032-01-02 ","Registro de Administrador Financiero",6,0,10,30,10,"NO",0,"NO",0,"NO",0,56]
["MD-022-07-06 ","Otorgamiento de personería jurídica para Clubes Profesionales",6,0,10,30,10,"NO",0,"NO",0,"NO",0,56]
["SD-039-01-03 ","Registro de Directiva para Organizaciones Sociales",6,0,10,30,10,"NO",0,"NO",0,"NO",0,56]
["MD-022-07-04","Otorgamiento de personería jurídica para Clubes Deportivos Especializados de Alto Rendimiento",6,0,10,30,10,"NO",0,"NO",0,"NO",0,56]
["SD-039-01-01 ","Aprobación de Estatuto y Otorgamiento de Personería Jurídica de Organizaciones Sociales",6,0,10,30,10,"NO",0,"NO",0,"NO",0,56]
["MD-022-07-03 ","Otorgamiento de personería jurídica para Clubes Deportivos Especializados Formativos",6,0,10,30,10,"NO",0,"NO",0,"NO",0,56]
["MD-031-02-02 ","Registro de directorio de Ligas, Asociaciones y Federaciones referentes al Deporte, la Educación Física y la Recreación",6,0,10,30,10,"NO",0,"NO",0,"NO",0,56]
["MD-022-08-02","Aprobación de Reforma Estatutaria de Organizaciones Deportivas",6,0,10,30,10,"NO",0,"NO",0,"NO",0,56]
["MD-024-01-01 ","Emisión de Copias Simples y/o Certificadas de Documentos que Reposan en los Archivos de la Secretaría del Deporte",6,0,10,30,10,"NO",0,"NO",0,"NO",0,56]
["MD-023-01-02","Inscripción a Actividades Deportivas de Fútbol Ejecutadas en los Centros Activos",10,0,10,0,0,"NO",0,"NO",0,"NO",0,20]
["MD-011-01-02 ","Reserva de Instalaciones para Actividades Deportivas y Recreativas.",10,0,10,0,0,"NO",0,"NO",0,"NO",0,20]
["MD-013-01-01 ","Capacitación en el Ámbito de Cultura Física y/o Ciencias Aplicadas bajo requerimiento",10,0,10,0,10,"NO",0,"NO",0,"NO",0,30]
["MD-022-07-01","Otorgamiento de personería jurídica para Clubes Deportivos Básicos",10,0,10,30,10,"NO",0,"NO",0,"NO",0,60]
["MD-003-01-05 ","Asignación de Recursos Públicos para Ejecución de Actividades Referentes a la Cultura Física a Entidades Públicas a través de Convenios",10,0,10,30,10,"NO",0,"NO",0,"NO",0,60]
["MD-031-02-03","Registro de directorio para Clubes Deportivos Básicos, Especializados, de Deporte Adaptado y/o Paralímpicos",10,0,10,30,10,"NO",0,"NO",0,"NO",0,60]
["MD-003-02-03","Modificación a la Planificación Operativa Anual de Organizaciones Deportivas",10,0,10,0,10,"NO",0,"NO",0,"NO",0,30]
["MD-003-01-01 ","Asignación de Recursos Públicos para Ejecución de Actividades Referentes a la Cultura Física a Organizaciones Deportivas a través de Convenios ",10,0,10,30,10,"NO",0,"NO",0,"NO",0,60]
["MD-003-02-02","Asignación de Recursos Públicos a la Planificación Operativa Anual de Organizaciones Deportivas",10,0,10,30,10,"NO",0,"NO",0,"NO",0,60]
["MD-007-04-02 ","Evaluación Médica Deportológica",10,0,20,0,10,"NO",0,"NO",0,"NO",0,40]
["MD-007-05-01 ","Consulta Médica a Deportistas",10,0,20,0,10,"NO",0,"NO",0,"NO",0,40]
["MD-034-03-02","Participación en Actividades Físicas Deportivas Recreativas",10,0,20,0,10,"NO",0,"NO",0,"NO",0,40]